lending/lending_fUSD_20250406
["ID","MTS","AMOUNT","RATE_DAILY","PERIOD"]
[357272728,1743971034358,-500.0,0.00053698,120]
[357272729,1743971034393,-306.99217371,0.00053698,120]
[357272730,1743971034427,-500.0,0.00053698,120]
[357272731,1743971034461,-510.8609422,0.00053698,120]
[357272732,1743971034495,-500.0,0.00053698,120]
[357272733,1743971034530,-530.7,0.00053698,120]
[357272734,1743971034562,-500.0,0.00053698,120]
[357272735,1743971034595,-500.0,0.00053698,120]
[357272736,1743971034630,-500.0,0.00053698,120]
[357272737,1743971034663,-500.0,0.00053698,120]
[357272738,1743971034697,-500.0,0.00053698,120]
[357272739,1743971034731,-543.90087,0.00053698,120]
[357272740,1743971034764,-500.0,0.00053698,120]
[357272741,1743971034796,-500.0,0.00053698,120]
[357272742,1743971034829,-759.48,0.00053698,120]
[357272743,1743971034862,-500.0,0.00053698,120]
[357272744,1743971034895,-188.48520013,0.00053698,120]
[357272745,1743971034929,-500.0,0.00053698,120]
[357272746,1743971034962,-579.31342482,0.00053698,120]
[357272747,1743971034994,-500.0,0.00053698,120]
[357272748,1743971035028,-362.753675,0.00053698,120]
[357272749,1743971035061,-1509.77,0.00053698,120]
[357272750,1743971035094,-500.0,0.00053698,120]
[357272751,1743971035133,-500.0,0.00053698,120]
[357272752,1743971035166,-2369.28,0.00053698,120]
[357272753,1743971035202,-221.96622229,0.00053698,120]
[357272754,1743971035235,-500.0,0.00053698,120]
[357272755,1743971035269,-3010.341077,0.00053698,120]
[357272756,1743971035302,-502.05320482,0.00053698,120]
[357272757,1743971035336,-500.0,0.00053698,120]
[357272758,1743971035371,-500.0,0.00053698,120]
[357272759,1743971035407,-500.0,0.00053698,120]
[357272760,1743971035445,-603.84,0.00053698,120]
[357272761,1743971035479,-500.0,0.00053698,120]
[357272762,1743971035513,-500.0,0.00053698,120]
[357272763,1743971035545,-500.0,0.00053698,120]
[357272764,1743971035579,-500.0,0.00053698,120]
[357272765,1743971035611,-500.0,0.00053698,120]
[357272766,1743971035643,-500.0,0.00053698,120]
[357272767,1743971035676,-500.0,0.00053698,120]
[357272768,1743971035708,-500.0,0.00053698,120]
[357272769,1743971035742,-1000.0,0.00053698,120]
[357272770,1743971035778,-500.0,0.00053698,120]
[357272771,1743971035810,-500.0,0.00053698,120]
[357272772,1743971035842,-506.85,0.00053698,120]
[357272773,1743971035875,-500.0,0.00053698,120]
[357272774,1743971035909,-500.0,0.00053698,120]
[357272775,1743971035940,-500.0,0.00053698,120]
[357272776,1743971035973,-588.26,0.00053698,120]
[357272777,1743971036005,-500.0,0.00053698,120]
[357272778,1743971036037,-500.0,0.00053698,120]
[357272779,1743971036071,-500.0,0.00053698,120]
[357272780,1743971036106,-700.22,0.00053698,120]
[357272781,1743971036140,-500.0,0.00053698,120]
[357272782,1743971036174,-2371.3,0.00053698,120]
[357272783,1743971036207,-500.0,0.00053698,120]
[357272784,1743971036240,-500.0,0.00053698,120]
[357272785,1743971036273,-500.0,0.00053698,120]
[357272786,1743971036306,-500.0,0.00053698,120]
[357272787,1743971036339,-500.0,0.00053698,120]
[357272788,1743971036373,-500.0,0.00053698,120]
[357272789,1743971036408,-546.06,0.00053698,120]
[357272790,1743971036443,-543.900871,0.00053698,120]
[357272791,1743971036478,-500.0,0.00053698,120]
[357272792,1743971036512,-182.68,0.00053698,120]
[357272793,1743971036546,-500.0,0.00053698,120]
[357272794,1743971036580,-500.0,0.00053698,120]
[357272795,1743971036614,-500.0,0.00053698,120]
[357272796,1743971036649,-658.27,0.00053698,120]
[357272797,1743971036683,-500.0,0.00053698,120]
[357272798,1743971036717,-500.0,0.00053698,120]
[357272799,1743971036751,-500.0,0.00053698,120]
[357272800,1743971036785,-548.01,0.00053698,120]
[357272801,1743971036818,-1101.5,0.00053698,120]
[357272802,1743971036851,-500.0,0.00053698,120]
[357272803,1743971036884,-500.0,0.00053698,120]
[357272804,1743971036918,-929.34,0.00053698,120]
[357272805,1743971036951,-500.0,0.00053698,120]
[357272806,1743971036985,-704.29,0.00053698,120]
[357272807,1743971037019,-500.0,0.00053698,120]
[357272808,1743971037052,-554.08,0.00053698,120]
[357272809,1743971037087,-981.43,0.00053698,120]
[357272810,1743971037125,-500.0,0.00053698,120]
[357272811,1743971037161,-364.80622241,0.00053698,120]
[357272812,1743971037196,-500.0,0.00053698,120]
[357272813,1743971037229,-500.0,0.00053698,120]
[357272814,1743971037263,-500.0,0.00053698,120]
[357272815,1743971037297,-634.57,0.00053698,120]
[357272816,1743971037331,-500.0,0.00053698,120]
[357272817,1743971037365,-224.85137351,0.00053698,120]
[357272818,1743971037400,-500.0,0.00053698,120]
[357272819,1743971037435,-500.0,0.00053698,120]
[357272820,1743971037470,-21905.37,0.00053698,120]
[357272821,1743971037505,-561.11045829,0.00053698,120]
[357272822,1743971037538,-500.0,0.00053698,120]
[357272823,1743971037718,-500.0,0.00053698,120]
[357272824,1743971037758,-500.0,0.00053698,120]
[357272825,1743971037792,-500.0,0.00053698,120]
[357272826,1743971037826,-500.0,0.00053698,120]
[357272827,1743971037859,-500.0,0.00053698,120]
[357272828,1743971037893,-500.0,0.00053698,120]
[357272829,1743971037930,-500.0,0.00053698,120]
[357272830,1743971037964,-500.0,0.00053698,120]
[357272831,1743971037998,-500.0,0.00053698,120]
[357272832,1743971038033,-500.0,0.00053698,120]
[357272833,1743971038066,-499.48257865,0.00053698,120]
[357272834,1743971038104,-500.0,0.00053698,120]
[357272835,1743971038138,-500.0,0.00053698,120]
[357272836,1743971038173,-532.77,0.00053698,120]
[357272837,1743971038208,-500.0,0.00053698,120]
[357272838,1743971038241,-649.96,0.00053698,120]
[357272839,1743971038278,-486.39131,0.00053698,120]
[357272840,1743971038313,-500.0,0.00053698,120]
[357272841,1743971038347,-500.0,0.00053698,120]
[357272842,1743971038380,-500.0,0.00053698,120]
[357272843,1743971038418,-500.0,0.00053698,120]
[357272844,1743971038457,-593.87,0.00053698,120]
[357272845,1743971038492,-500.0,0.00053698,120]
[357272846,1743971038525,-500.0,0.00053698,120]
[357272847,1743971038558,-500.0,0.00053698,120]
[357272848,1743971038590,-1569.18,0.00053698,120]
[357272849,1743971038623,-500.0,0.00053698,120]
[357272850,1743971038656,-500.0,0.00053698,120]
[357272851,1743971038690,-500.0,0.00053698,120]
[357272852,1743971038725,-1168.54,0.00053698,120]
[357272853,1743971038760,-500.0,0.00053698,120]
[357272854,1743971038793,-500.0,0.00053698,120]
[357272855,1743971038828,-500.0,0.00053698,120]
[357272856,1743971038868,-733.34,0.00053698,100]
[357272857,1743971038905,-500.0,0.00053698,120]
[357272858,1743971038938,-500.0,0.00053698,120]
[357272859,1743971038971,-500.0,0.00053698,120]
[357272860,1743971039005,-543.78,0.00053698,120]
[357272861,1743971039038,-500.0,0.00053698,120]
[357272862,1743971039071,-500.0,0.00053698,120]
[357272863,1743971039106,-259.7750432,0.00053698,120]
[357272864,1743971039140,-500.0,0.00053698,120]
[357272865,1743971039172,-500.0,0.00053698,120]
[357272866,1743971039208,-1277.34,0.00053698,120]
[357272867,1743971039242,-500.0,0.00053698,120]
[357272868,1743971039277,-500.0,0.00053698,120]
[357272869,1743971039313,-500.0,0.00053698,120]
[357272870,1743971039347,-500.0,0.00053698,120]
[357272871,1743971039381,-449.73764932,0.00053698,120]
[357272872,1743971039416,-500.0,0.00053698,120]
[357272873,1743971039450,-500.0,0.00053698,120]
[357272874,1743971039487,-500.0,0.00053698,120]
[357272875,1743971039521,-500.0,0.00053698,120]
[357272876,1743971039553,-500.0,0.00053698,120]
[357272877,1743971039591,-500.0,0.00053698,120]
[357272878,1743971039626,-587.24,0.00053698,120]
[357272879,1743971039661,-500.0,0.00053698,120]
[357272880,1743971039696,-500.0,0.00053698,120]
[357272881,1743971039729,-500.0,0.00053698,120]
[357272882,1743971039763,-732.01,0.00053698,120]
[357272883,1743971039798,-2061.33,0.00053698,120]
[357272884,1743971039832,-775.81,0.00053698,120]
[357272885,1743971039866,-553.06287425,0.00053698,120]
[357272886,1743971039901,-1072.20437,0.00053698,120]
[357272887,1743971039935,-500.0,0.00053698,120]
[357272888,1743971039969,-500.0,0.00053698,120]
[357272889,1743971040003,-500.0,0.00053698,120]
[357272890,1743971040038,-500.0,0.00053698,120]
[357272891,1743971040074,-500.0,0.00053698,120]
[357272892,1743971040112,-500.0,0.00053698,120]
[357272893,1743971040156,-786.35,0.00053698,120]
[357272894,1743971040199,-500.0,0.00053698,120]
[357272895,1743971040238,-500.0,0.00053698,120]
[357272896,1743971040277,-500.0,0.00053698,120]
[357272897,1743971040319,-500.0,0.00053698,120]
[357272898,1743971040356,-500.0,0.00053698,120]
[357272899,1743971040393,-500.0,0.00053698,120]
[357272900,1743971040431,-650.89,0.00053698,120]
[357272901,1743971040468,-500.0,0.00053698,120]
[357272902,1743971040505,-500.0,0.00053698,120]
[357272903,1743971040546,-500.0,0.00053698,120]
[357272904,1743971040581,-500.0,0.00053698,120]
[357272905,1743971040616,-500.0,0.00053698,120]
[357272906,1743971040651,-500.0,0.00053698,120]
[357272907,1743971040686,-500.0,0.00053698,30]
[357272908,1743971040724,-500.0,0.00053698,120]
[357272909,1743971040762,-500.0,0.00053698,120]
[357272910,1743971040800,-590.42407841,0.00053698,120]
[357272911,1743971040838,-511.90815991,0.00053698,120]
[357272912,1743971040877,-500.0,0.00053698,120]
[357272913,1743971040917,-758.38,0.00053698,120]
[357272914,1743971040957,-500.0,0.00053698,120]
[357272915,1743971040995,-500.0,0.00053698,120]
[357272916,1743971041033,-500.0,0.00053698,120]
[357272917,1743971041070,-500.0,0.00053698,120]
[357272918,1743971041107,-500.0,0.00053698,120]
[357272919,1743971041146,-700.23,0.00053698,120]
[357272920,1743971041183,-500.0,0.00053698,120]
[357272921,1743971041219,-500.0,0.00053698,120]
[357272922,1743971041256,-742.48,0.00053698,120]
[357272923,1743971041295,-500.0,0.00053698,120]
[357272924,1743971041334,-500.0,0.00053698,120]
[357272925,1743971041373,-500.0,0.00053698,120]
[357272926,1743971041413,-500.0,0.00053698,120]
[357272927,1743971041610,-500.0,0.00053698,120]
[357272928,1743971041655,-500.0,0.00053698,120]
[357272929,1743971041696,-531.21903365,0.00053698,120]
[357272930,1743971041734,-442.2700361,0.00053698,120]
[357272931,1743971041773,-500.0,0.00053698,120]
[357272932,1743971041813,-500.0,0.00053698,120]
[357272933,1743971041853,-2723.45,0.00053698,120]
[357272934,1743971041893,-500.0,0.00053698,120]
[357272935,1743971041931,-500.0,0.00053698,120]
[357272936,1743971041976,-515.63,0.00053698,120]
[357272937,1743971042023,-500.0,0.00053698,120]
[357272938,1743971042065,-702.65,0.00053698,120]
[357272939,1743971042108,-500.0,0.00053698,120]
[357272940,1743971042151,-345.14104295,0.00053698,120]
[357272941,1743971042189,-500.0,0.00053698,120]
[357272942,1743971042225,-500.0,0.00053698,120]
[357272943,1743971042263,-395.20914878,0.00053698,120]
[357272944,1743971042300,-500.0,0.00053698,120]
[357272945,1743971042337,-500.0,0.00053698,120]
[357272946,1743971042373,-500.0,0.00053698,120]
[357272947,1743971042412,-500.0,0.00053698,120]
[357272948,1743971042449,-500.0,0.00053698,120]
[357272949,1743971042485,-500.0,0.00053698,120]
[357272950,1743971042522,-500.0,0.00053698,120]
[357272951,1743971042557,-500.0,0.00053698,120]
[357272952,1743971042592,-500.0,0.00053698,120]
[357272953,1743971042627,-500.0,0.00053698,120]
[357272954,1743971042662,-500.0,0.00053698,30]
[357272955,1743971042699,-479.85746359,0.00053698,120]
[357272956,1743971042738,-500.0,0.00053698,120]
[357272957,1743971042773,-500.0,0.00053698,120]
[357272958,1743971042809,-500.0,0.00053698,120]
[357272959,1743971042846,-762.64,0.00053698,120]
[357272960,1743971042882,-500.0,0.00053698,120]
[357272961,1743971042914,-500.0,0.00053698,120]
[357272962,1743971042946,-500.0,0.00053698,120]
[357272963,1743971042978,-500.0,0.00053698,120]
[357272964,1743971043011,-500.0,0.00053698,120]
[357272965,1743971043045,-500.0,0.00053698,120]
[357272966,1743971043081,-523.63514049,0.00053698,120]
[357272967,1743971043124,-570.17734111,0.00053698,120]
[357272968,1743971043164,-500.0,0.00053698,120]
[357272969,1743971043209,-500.0,0.00053698,120]
[357272970,1743971043251,-500.0,0.00053698,120]
[357272971,1743971043292,-500.0,0.00053698,120]
[357272972,1743971043334,-500.0,0.00053698,120]
[357272973,1743971043375,-500.0,0.00053698,120]
[357272974,1743971043418,-1085.28,0.00053698,120]
[357272975,1743971043459,-990.53,0.00053698,120]
[357272976,1743971043500,-500.0,0.00053698,120]
[357272977,1743971043541,-180.71057563,0.00053698,120]
[357272978,1743971043582,-500.0,0.00053698,120]
[357272979,1743971043621,-500.0,0.00053698,120]
[357272980,1743971043662,-500.0,0.00053698,120]
[357272981,1743971043701,-500.0,0.00053698,120]
[357272982,1743971043739,-150.0,0.00053849,120]
[357272983,1743971043776,-500.0,0.000539,120]
[357272984,1743971043812,-500.0,0.000539,120]
[357272985,1743971043849,-163.467066,0.000539,120]
[357272986,1743971043884,-200.0,0.000539,120]
[357272987,1743971043919,-9981.17,0.000539,60]
[357272988,1743971043953,-500.0,0.00053972,32]
[357272989,1743971043991,-50000.0,0.00054,54]
[357272990,1743971044026,-2046.46,0.00054,120]
[357272991,1743971044062,-217.54443171,0.00054,120]
[357272992,1743971044102,-1912.07,0.00054,120]
[357272993,1743971044139,-11801.69,0.00054,120]
[357272994,1743971044176,-350.0,0.00054047,120]
[357272995,1743971044215,-350.0,0.00054057,120]
[357272996,1743971044253,-350.0,0.00054067,120]
[357272997,1743971044291,-166.37199011,0.00054077,120]
[357272998,1743971044327,-997.68334725,0.00054077,120]
[357272999,1743971044363,-1408.56704463,0.00054077,120]
[357273000,1743971044400,-199.99,0.0005411,30]
[357273001,1743971044437,-544.46450647,0.00054246,120]
[357273002,1743971044475,-1760.479773,0.00054246,120]
[357273003,1743971044513,-4233.847295,0.00054246,120]
[357273004,1743971044552,-175.865933,0.00054246,120]
[357273005,1743971044589,-500.0,0.00054246,120]
[357273006,1743971044624,-500.0,0.00054246,120]
[357273007,1743971044661,-500.0,0.00054246,120]
[357273008,1743971044697,-500.0,0.00054246,120]
[357273009,1743971044731,-500.0,0.00054246,120]
[357273010,1743971044766,-500.0,0.00054246,120]
[357273011,1743971044801,-500.0,0.00054246,120]
[357273012,1743971044836,-500.0,0.00054246,120]
[357273013,1743971044872,-604.51982588,0.00054246,120]
[357273014,1743971044907,-500.0,0.00054246,120]
[357273015,1743971044942,-502.76366691,0.00054246,120]
[357273016,1743971044977,-500.0,0.00054246,120]
[357273017,1743971045012,-500.0,0.00054246,120]
[357273018,1743971045047,-500.0,0.00054246,120]
[357273019,1743971045081,-500.0,0.00054246,120]
[357273020,1743971045120,-569.50260742,0.00054246,120]
[357273021,1743971045158,-500.0,0.00054246,120]
[357273022,1743971045197,-500.0,0.00054246,120]
[357273023,1743971045232,-623.65337588,0.00054246,120]
[357273024,1743971045269,-574.00982072,0.00054246,120]
[357273025,1743971045305,-500.0,0.00054246,120]
[357273026,1743971045341,-502.82629369,0.00054246,120]
[357273027,1743971045378,-500.0,0.00054246,120]
[357273028,1743971045414,-505.50851461,0.00054246,120]
[357273029,1743971045591,-500.0,0.00054246,120]
[357273030,1743971045632,-500.0,0.00054246,120]
[357273031,1743971045670,-500.0,0.00054246,120]
[357273032,1743971045708,-593.85000341,0.00054246,120]
[357273033,1743971045745,-500.0,0.00054246,120]
[357273034,1743971045781,-500.0,0.00054246,120]
[357273035,1743971045816,-635.69251163,0.00054246,120]
[357273036,1743971045852,-500.0,0.00054246,120]
[357273037,1743971045887,-500.0,0.00054246,120]
[357273038,1743971045923,-500.0,0.00054246,120]
[357273039,1743971045959,-500.0,0.00054246,120]
[357273040,1743971045993,-514.08209116,0.00054246,120]
[357273041,1743971046031,-165.56989657,0.00054246,120]
[357273042,1743971046067,-613.4167848,0.00054246,120]
[357273043,1743971046104,-500.0,0.00054246,30]
[357273044,1743971046143,-500.0,0.00054246,120]
[357273045,1743971046183,-500.0,0.00054246,120]
[357273046,1743971046221,-500.0,0.00054246,120]
[357273047,1743971046260,-500.0,0.00054246,120]
[357273048,1743971046300,-500.0,0.00054246,120]
[357273049,1743971046338,-500.0,0.00054246,120]
[357273050,1743971046375,-513.58167255,0.00054246,120]
[357273051,1743971046414,-669.86,0.00054246,120]
[357273052,1743971046451,-500.0,0.00054246,120]
[357273053,1743971046489,-500.0,0.00054246,120]
[357273054,1743971046526,-500.0,0.00054246,120]
[357273055,1743971046562,-166.351477,0.00054246,120]
[357273056,1743971046597,-500.0,0.00054246,120]
[357273057,1743971046632,-500.0,0.00054246,120]
[357273058,1743971046668,-500.0,0.00054246,120]
[357273059,1743971046703,-500.0,0.00054246,120]
[357273060,1743971046739,-500.0,0.00054246,120]
[357273061,1743971046774,-849.452794,0.00054246,120]
[357273062,1743971046810,-604.16,0.00054246,120]
[357273063,1743971046844,-500.0,0.00054246,120]
[357273064,1743971046879,-500.0,0.00054246,120]
[357273065,1743971046912,-500.0,0.00054246,120]
[357273066,1743971046947,-500.0,0.00054246,120]
[357273067,1743971046983,-500.0,0.00054246,120]
[357273068,1743971047019,-500.0,0.00054246,120]
[357273069,1743971047056,-528.84484584,0.00054246,120]
[357273070,1743971047095,-612.93921765,0.00054246,120]
[357273071,1743971047136,-607.18,0.00054246,120]
[357273072,1743971047174,-500.0,0.00054246,120]
[357273073,1743971047212,-500.0,0.00054246,120]
[357273074,1743971047248,-500.0,0.00054246,120]
[357273075,1743971047287,-181.54878138,0.00054246,120]
[357273076,1743971047327,-761.26,0.00054246,120]
[357273077,1743971047365,-500.0,0.00054246,120]
[357273078,1743971047402,-500.0,0.00054246,120]
[357273079,1743971047440,-956.23,0.00054246,120]
[357273080,1743971047483,-500.0,0.00054246,120]
[357273081,1743971047521,-217.78280307,0.00054246,120]
[357273082,1743971047558,-500.0,0.00054246,120]
[357273083,1743971047599,-500.0,0.00054246,120]
[357273084,1743971047638,-500.0,0.00054246,120]
[357273085,1743971047677,-500.0,0.00054246,120]
[357273086,1743971047718,-500.0,0.00054246,120]
[357273087,1743971047757,-170.22,0.00054246,120]
[357273088,1743971047796,-4330.95,0.00054246,120]
[357273089,1743971047836,-500.0,0.00054246,120]
[357273090,1743971047875,-500.0,0.00054246,120]
[357273091,1743971047913,-500.0,0.00054246,120]
[357273092,1743971047952,-500.0,0.00054246,120]
[357273093,1743971047989,-500.0,0.00054246,120]
[357273094,1743971048025,-500.0,0.00054246,120]
[357273095,1743971048061,-643.26,0.00054246,120]
[357273096,1743971048101,-500.0,0.00054246,120]
[357273097,1743971048139,-276.76193527,0.00054246,120]
[357273098,1743971048175,-500.0,0.00054246,120]
[357273099,1743971048213,-500.0,0.00054246,120]
[357273100,1743971048252,-500.0,0.00054246,120]
[357273101,1743971048291,-500.0,0.00054246,120]
[357273102,1743971048330,-500.0,0.00054246,120]
[357273103,1743971048370,-500.0,0.00054246,120]
[357273104,1743971048410,-500.0,0.00054246,120]
[357273105,1743971048453,-319.55960398,0.00054246,120]
[357273106,1743971048497,-500.0,0.00054246,120]
[357273107,1743971048539,-500.0,0.00054246,120]
[357273108,1743971048583,-500.0,0.00054246,120]
[357273109,1743971048625,-500.0,0.00054246,120]
[357273110,1743971048666,-500.0,0.00054246,120]
[357273111,1743971048706,-500.0,0.00054246,120]
[357273112,1743971048752,-500.0,0.00054246,120]
[357273113,1743971048812,-500.0,0.00054246,120]
[357273114,1743971048862,-690.23,0.00054246,120]
[357273115,1743971048899,-359.5,0.00054246,120]
[357273116,1743971048939,-500.0,0.00054246,120]
[357273117,1743971048976,-500.0,0.00054246,120]
[357273118,1743971049013,-500.0,0.00054246,120]
[357273119,1743971049050,-547.8,0.00054246,120]
[357273120,1743971049088,-500.0,0.00054246,120]
[357273121,1743971049135,-500.0,0.00054246,120]
[357273122,1743971049200,-767.93,0.00054246,120]
[357273123,1743971049257,-500.0,0.00054246,120]
[357273124,1743971049301,-498.777555,0.00054246,120]
[357273125,1743971049342,-500.0,0.00054246,120]
[357273126,1743971049392,-500.0,0.00054246,120]
[357273127,1743971049432,-500.0,0.00054246,120]
[357273128,1743971049617,-500.0,0.00054246,120]
[357273129,1743971049661,-500.0,0.00054246,120]
[357273130,1743971049705,-500.0,0.00054246,120]
[357273131,1743971049746,-500.0,0.00054246,120]
[357273132,1743971049784,-707.23,0.00054246,120]
[357273133,1743971049821,-500.0,0.00054246,120]
[357273134,1743971049858,-639.80308514,0.00054246,120]
[357273135,1743971049896,-500.0,0.00054246,120]
[357273136,1743971049933,-500.0,0.00054246,120]
[357273137,1743971049970,-500.0,0.00054246,120]
[357273138,1743971050007,-500.0,0.00054246,120]
[357273139,1743971050048,-500.0,0.00054246,120]
[357273140,1743971050088,-500.0,0.00054246,120]
[357273141,1743971050131,-620.05,0.00054246,120]
[357273142,1743971050173,-500.0,0.00054246,120]
[357273143,1743971050210,-515.53613373,0.00054246,120]
[357273144,1743971050247,-500.0,0.00054246,120]
[357273145,1743971050284,-509.25,0.00054246,120]
[357273146,1743971050322,-500.0,0.00054246,120]
[357273147,1743971050359,-500.0,0.00054246,120]
[357273148,1743971050396,-700.74,0.00054246,120]
[357273149,1743971050435,-500.0,0.00054246,120]
[357273150,1743971050474,-500.0,0.00054246,120]
[357273151,1743971050513,-500.0,0.00054246,120]
[357273152,1743971050549,-500.0,0.00054246,120]
[357273153,1743971050586,-1221.83,0.00054246,120]
[357273154,1743971050621,-500.0,0.00054246,120]
[357273155,1743971050658,-500.0,0.00054246,120]
[357273156,1743971050695,-500.0,0.00054246,120]
[357273157,1743971050732,-500.0,0.00054246,120]
[357273158,1743971050769,-500.0,0.00054246,120]
[357273159,1743971050806,-500.0,0.00054246,120]
[357273160,1743971050843,-500.0,0.00054246,120]
[357273161,1743971050880,-500.0,0.00054246,120]
[357273162,1743971050917,-500.0,0.00054246,120]
[357273163,1743971050954,-500.0,0.00054246,120]
[357273164,1743971050990,-609.82,0.00054246,120]
[357273165,1743971051025,-500.0,0.00054246,120]
[357273166,1743971051059,-277.5150676,0.00054246,120]
[357273167,1743971051098,-619.65,0.00054246,120]
[357273168,1743971051139,-500.0,0.00054246,120]
[357273169,1743971051176,-500.0,0.00054246,120]
[357273170,1743971051212,-500.0,0.00054246,120]
[357273171,1743971051248,-500.0,0.00054246,120]
[357273172,1743971051282,-500.0,0.00054246,120]
[357273173,1743971051317,-500.0,0.00054246,120]
[357273174,1743971051350,-500.0,0.00054246,120]
[357273175,1743971051387,-1426.32,0.00054246,120]
[357273176,1743971051421,-500.0,0.00054246,120]
[357273177,1743971051456,-500.0,0.00054246,120]
[357273178,1743971051490,-500.0,0.00054246,120]
[357273179,1743971051525,-500.0,0.00054246,120]
[357273180,1743971051560,-500.0,0.00054246,120]
[357273181,1743971051594,-500.0,0.00054246,120]
[357273182,1743971051627,-500.0,0.00054246,120]
[357273183,1743971051662,-500.0,0.00054246,120]
[357273184,1743971051697,-382.91634123,0.00054246,120]
[357273185,1743971051732,-500.0,0.00054246,120]
[357273186,1743971051766,-500.0,0.00054246,120]
[357273187,1743971051799,-500.0,0.00054246,120]
[357273188,1743971051832,-500.0,0.00054246,120]
[357273189,1743971051864,-500.0,0.00054246,120]
[357273190,1743971051898,-500.0,0.00054246,120]
[357273191,1743971051931,-500.0,0.00054246,120]
[357273192,1743971051965,-618.14,0.00054246,120]
[357273193,1743971051999,-582.49773343,0.00054246,120]
[357273194,1743971052032,-500.0,0.00054246,120]
[357273195,1743971052068,-974.52,0.00054246,120]
[357273196,1743971052105,-500.0,0.00054246,120]
[357273197,1743971052142,-500.0,0.00054246,120]
[357273198,1743971052176,-701.52,0.00054246,120]
[357273199,1743971052215,-500.0,0.00054246,120]
[357273200,1743971052251,-500.0,0.00054246,120]
[357273201,1743971052288,-500.0,0.00054246,120]
[357273202,1743971052325,-500.0,0.00054246,120]
[357273203,1743971052364,-500.0,0.00054246,120]
[357273204,1743971052403,-500.0,0.00054246,120]
[357273205,1743971052441,-500.0,0.00054246,120]
[357273206,1743971052479,-500.0,0.00054246,120]
[357273207,1743971052516,-500.0,0.00054246,120]
[357273208,1743971052552,-500.0,0.00054246,120]
[357273209,1743971052588,-500.0,0.00054246,120]
[357273210,1743971052622,-500.0,0.00054246,120]
[357273211,1743971052655,-500.0,0.00054246,120]
[357273212,1743971052690,-500.0,0.00054246,120]
[357273213,1743971052724,-500.0,0.00054246,120]
[357273214,1743971052758,-581.36204516,0.00054246,120]
[357273215,1743971052791,-500.0,0.00054246,120]
[357273216,1743971052824,-500.0,0.00054246,120]
[357273217,1743971052858,-500.0,0.00054246,120]
[357273218,1743971052892,-500.0,0.00054246,120]
[357273219,1743971052926,-500.0,0.00054246,120]
[357273220,1743971052961,-500.0,0.00054246,30]
[357273221,1743971052994,-500.0,0.00054246,120]
[357273222,1743971053028,-500.0,0.00054246,120]
[357273223,1743971053201,-573.81944638,0.00054246,120]
[357273224,1743971053241,-500.0,0.00054246,120]
[357273225,1743971053278,-500.0,0.00054246,120]
[357273226,1743971053316,-500.0,0.00054246,120]
[357273227,1743971053353,-500.0,0.00054246,120]